{"text_format":"1","workbook":"xlsx","n_sheets":3,"sheets":["Рисунок","ОР","Итог"],"not_rendered":{"charts":0,"images":1,"macros":1,"external_links":0,"defined_names":0,"comments":0,"pivot_tables":0},"unopened":[],"bounds":{"document_bytes":16777216,"sheet_cells":100000,"rows_first":2000,"rows_last":500,"rows_between":2000,"halvings":0,"cell_chars":16384,"cell_head_chars":4096},"cells_cut":0,"cells_raw":0,"read":"whole","date_system":"1900"}

{"sheet":"Рисунок","index":0,"n_rows":23,"n_cols":21,"rows_kept":23,"cut":false,"hidden":false,"merged":[[1,1,1,3],[1,4,1,9],[1,11,1,12],[1,13,1,15],[2,1,2,3],[2,4,2,9],[9,7,36,18],[13,23,16,23],[17,20,20,22],[17,23,20,23],[22,20,24,23],[9,20,12,22],[9,23,12,23],[13,20,16,22],[4,1,7,23]]}
[]
[null,"ФИО",null,null,null,null,null,null,null,null,null,"Класс"]
[null,"Возраст"]
[]
[null,"Вам нужно составить фигуру человека из 10 элементов, среди которых могут быть треугольники, круги, квадраты. Вы можете увеличивать или уменьшать эти элементы (геометрические фигуры) в размерах, накладывать друг на друга по мере надобности. Важно, чтобы сумма общего количества использованных фигур была равна десяти. Если же вами использовано фигур меньше, чем десять, необходимо добавить недостающие."]
[]
[]
[]
[]
[null,null,null,null,null,null,null,null,null,null,null,null,null,null,null,null,null,null,null,null,"Количество треугольников"]
[]
[]
[]
[null,null,null,null,null,null,null,null,null,null,null,null,null,null,null,null,null,null,null,null,"Количество кругов"]
[]
[]
[]
[null,null,null,null,null,null,null,null,null,null,null,null,null,null,null,null,null,null,null,null,"Количество квадратов"]
[]
[]
[]
[]
[null,null,null,null,null,null,null,null,null,null,null,null,null,null,null,null,null,null,null,null,{"$f":"IF(X10+X14+X18=10,\"Все верно\",\"Проверьте количество фигур\")","v":"Проверьте количество фигур"}]

{"sheet":"ОР","index":1,"n_rows":36,"n_cols":28,"rows_kept":36,"cut":false,"hidden":true,"merged":[[2,6,2,25],[2,1,2,5],[3,1,3,5],[4,1,4,5],[5,1,5,5],[0,1,0,3],[0,4,0,5],[8,1,8,5],[9,1,9,5],[10,1,10,5],[6,1,6,5],[7,1,7,5],[7,27,7,33],[8,27,8,33],[10,27,10,33],[3,27,3,33],[4,27,4,33],[11,27,11,33],[2,27,2,33],[13,1,13,5],[14,1,14,5],[15,1,16,5],[15,6,16,6],[15,7,16,7],[15,8,16,8],[15,9,16,9],[15,10,16,10],[13,12,14,21],[13,22,14,22],[15,12,16,21],[12,12,12,22],[5,27,5,33],[6,27,6,33],[12,1,12,10],[18,1,18,10],[22,1,22,10],[19,1,19,5],[20,1,20,5],[25,1,26,5],[25,6,26,6],[25,7,26,7],[23,1,24,5],[23,6,24,6],[23,7,24,7],[23,12,24,21],[25,12,26,21],[25,22,26,22],[23,8,24,8],[23,9,24,9],[23,10,24,10],[23,22,24,22],[25,8,26,8],[25,9,26,9],[25,10,26,10],[14,26,14,35],[15,26,17,35],[18,26,20,35],[21,26,22,35],[22,12,22,22],[17,12,18,21],[15,22,16,22],[17,22,18,22],[19,22,20,22],[19,12,20,21]]}
[null,"Формула рисунка",null,null,{"$f":"VALUE(CONCATENATE(Рисунок!X10,Рисунок!X14,Рисунок!X18))","v":{"$error":"#VALUE!"}}]
[]
[null,"Типы личности",null,null,null,null,"Формулы рисунков",null,null,null,null,null,null,null,null,null,null,null,null,null,null,null,null,null,null,null,null,"Интерпретация результатов теста"]
[1,"Тип личности: руководитель. Обычно это люди, имеющие склонность к руководящей и организаторской деятельности, ориентированные на социально значимые нормы поведения, могут обладать даром хороших рассказчиков, основывающимся на высоком уровне речевого развития. Обладают хорошей адаптацией в социальной сфере, доминирование над другими удерживают в определенных границах.",null,null,null,null,901,910,802,811,820,703,712,721,730,604,613,622,631,640,null,null,null,null,null,null,null,{"$f":"IF(OR(G4=E1,H4=E1,I4=E1,J4=E1,K4=E1,L4=E1,M4=E1,N4=E1,O4=E1,P4=E1,Q4=E1,R4=E1,S4=E1,T4=E1),B4,)","v":{"$error":"#VALUE!"}}]
[2,"Тип личности: ответственный исполнитель. Обладает многими чертами типа «руководитель», являясь расположенным к нему, однако в принятии ответственных решений часто присутствуют колебания. Такой человек ориентирован на умение делать дело, высокий профессионализм, обладает высоким чувством ответственности и требовательности к себе и другим, высоко ценит правоту, то есть характеризуется повышенной чувствительностью к правдивости. ",null,null,null,null,505,514,523,532,541,550,null,null,null,null,null,null,null,null,null,null,null,null,null,null,null,{"$f":"IF(OR(G5=E1,H5=E1,I5=E1,J5=E1,K5=E1,L5=E1),B5,)","v":{"$error":"#VALUE!"}}]
[3,"Тревожно-мнительный тип личности. Тип людей характеризуется разнообразием способностей и одаренности – от тонких ручных навыков до литературной одаренности. Обычно этим людям тесно в рамках одной профессии, они могут поменять ее на совершенно противоположную и неожиданную, иметь также хобби, которое по сути является второй профессией. Физически не переносят беспорядка и грязи. ",null,null,null,null,406,415,424,433,442,451,460,null,null,null,null,null,null,null,null,null,null,null,null,null,null,{"$f":"IF(OR(G6=E1,H6=E1,J6=M6,K6=E1,L6=E1,I6=E1),B6,)","v":{"$error":"#VALUE!"}}]
[4,"Тип личности: ученый. Эти люди легко абстрагируются от реальности, обладают концептуальным умом, отличаются способностью разрабатывать все свои теории. Обычно обладают душевным равновесием и рационально продумывают свое поведение.",null,null,null,null,307,316,325,334,343,352,361,370,null,null,null,null,null,null,null,null,null,null,null,null,null,{"$f":"IF(OR(G7=E1,H7=E1,I7=E1,J7=E1,K7=E1,L7=E1,M7=E1,N7=E1),B7,)","v":{"$error":"#VALUE!"}}]
[5,"Интуитивный тип личности. Люди этого типа обладают сильной чувствительностью нервной системы, ее высокой истощаемостью. Альтруистичны, часто проявляют заботу о других, обладают хорошими ручными навыками и образным воображением, что дает им возможность заниматься техническими видами творчества.",null,null,null,null,208,217,226,235,244,253,262,271,280,null,null,null,null,null,null,null,null,null,null,null,null,{"$f":"IF(OR(G8=E1,H8=E1,I8=E1,J8=E1,K8=E1,L8=E1,M8=E1,N8=E1,O8=E1),B8,)","v":{"$error":"#VALUE!"}}]
[6,"Тип личности: изобретатель, конструктор, художник. Часто встречается среди лиц с технической жилкой. Это люди, обладающие богатым воображением, пространственным видением, часто занимаются различными видами технического, художественного и интеллектуального творчества.",null,null,null,null,109,118,127,136,145,19,28,37,46,null,null,null,null,null,null,null,null,null,null,null,null,{"$f":"IF(OR(G9=E1,H9=E1,I9=E1,J9=E1,K9=E1,L9=E1,M9=E1,N9=E1,O9=E1),B9,)","v":{"$error":"#VALUE!"}}]
[7,"Эмотивный. Обладают повышенным сопереживанием по отношению к другим, тяжело переживают жестокие кадры фильма, могут надолго быть выбитыми из колеи и быть потрясенными от жестоких событий. Боли и заботы других людей находят в них участие, сопереживание и сочувствие.",null,null,null,null,550,451,460,352,361,370,253,262,271,280,154,163,172,181,190,55,64,73,82,91]
[8,"Нечувствительный к переживаниям других. Обычно не чувствует переживаний других людей, или относится к ним с невниманием, или даже усиливает давление на людей. Если это хороший специалист, то он может заставить других делать то, что он считает нужным.",null,null,null,null,901,802,703,604,505,406,307,208,109,null,null,null,null,null,null,null,null,null,null,null,null,{"$f":"IF(OR(G10=E1,H10=E1,I10=E1,J10=E1,K10=E1,L10=E1,M10=E1,N10=E1,O10=E1,P10=E1,Q10=E1,R10=E1,S10=E1,T10=E1,U10=E1,V10=E1,W10=E1,X10=E1,Y10=E1,Z10=E1),B10,)","v":{"$error":"#VALUE!"}}]
[null,null,null,null,null,null,null,null,null,null,null,null,null,null,null,null,null,null,null,null,null,null,null,null,null,null,null,{"$f":"IF(OR(G11=E1,H11=E1,I11=E1,J11=E1,K11=E1,L11=E1,M11=E1,N11=E1,O11=E1,),B11,)","v":{"$error":"#VALUE!"}}]
[null,"Подтипы: руководитель",null,null,null,null,null,null,null,null,null,null,"Подтипы: интуитивный"]
[null,"Наиболее жестко выражено доминирование над другими",null,null,null,null,901,910,802,811,820,null,"Часто встречается среди профессиональных психологов или лиц с повышенным интересом к психологии",null,null,null,null,null,null,null,null,null,235]
[null,"Ситуативное доминирование над другими",null,null,null,null,703,712,721,730,null,null,null,null,null,null,null,null,null,null,null,null,null,null,null,null,"Конструктивный рисунок человека из геометрических фигур"]
[null,"При воздействии речью на людей – вербальный руководитель или преподавательский подтип",null,null,null,null,604,613,622,631,640,null,"Обладает способностью к литературному творчеству",null,null,null,null,null,null,null,null,null,244,null,null,null,{"$f":"IF(AB4<>0,AB4,(IF(AB5<>0,AB5,IF(AB6<>0,AB6,IF(AB7<>0,AB7,IF(AB8<>0,AB8,IF(AB9<>0,AB9,IF(AB11<>0,AB11,(IF(AB12<>0,AB12,0))))))))))","v":{"$error":"#VALUE!"}}]
[]
[null,null,null,null,null,null,null,null,null,null,null,null,"Обладает способностью к изобретательской деятельности",null,null,null,null,null,null,null,null,null,217]
[null,"Подтипы: тревожно-мнительный",null,null,null,null,null,null,null,null,null,null,null,null,null,null,null,null,null,null,null,null,null,null,null,null,{"$f":"IF(OR(E1=P10,E1=O10,E1=N10,E1=M10,E1=L10,E1=K10,E1=J10,E1=I10,E1=H10,E1=G10),AB11,(IF(OR(E1=O11,E1=N11,E1=M11,E1=L11,E1=K11,E1=J11,E1=I11,E1=H11,E1=G11),B11,\"\")))","v":{"$error":"#VALUE!"}}]
[null,"Поэтический подтип (поэтическая одаренность)",null,null,null,null,415,null,null,null,null,null,"Имеет большую потребность в новизне, обычно ставит очень высокие критерии достижений для себя",null,null,null,null,null,null,null,null,null,226]
[null,"Отличаются особой тщательностью в работе",null,null,null,null,424]
[null,null,null,null,null,null,null,null,null,null,null,null,null,null,null,null,null,null,null,null,null,null,null,null,null,null,{"$f":"IF(OR(G14=E1,H14=E1,I14=E1,J14=E1,K14=E1),B14,IF(OR(G15=E1,H15=E1,I15=E1,J15=E1),B15,IF(OR(G16=E1,H16=E1,I16=E1,J16=E1,K16=E1),B16,IF(G20=E1,B20,IF(G21=E1,B21,IF(G24=E1,B24,IF(G26=E1,B26,IF(W14=E1,M14,IF(W16=E1,M16,IF(W18=E1,M18,IF(W20=E1,M20,IF(W24=E1,M24,IF(W26=E1,M26,\"\")))))))))))))","v":{"$error":"#VALUE!"}}]
[null,"Подтипы: ученый",null,null,null,null,null,null,null,null,null,null,"Подтипы: изобретатель, конструктор, художник"]
[null,"Способность создавать теории, осуществлять большую и сложную координационную работу",null,null,null,null,316,null,null,null,null,null,"Встречается среди лиц, хорошо владеющих аудиторией",null,null,null,null,null,null,null,null,null,19]
[]
[null,"Большая увлеченность познания жизни, здоровья, биологическими дисциплинами, медициной",null,null,null,null,325,null,null,null,null,null,"Наиболее сильно выраженны конструктивные возможностями и способности к изобретениям",null,null,null,null,null,null,null,null,null,118]
[]
[]
[null,null,null,null,null,null,901,910,802,811,820,703,712,721,730,604,613,622,631,640]
[null,null,null,null,null,null,505,514,523,532,541,550]
[null,null,null,null,null,null,406,415,424,433,442,451,460]
[null,null,null,null,null,null,307,316,325,334,343,352,361,370]
[null,null,null,null,null,null,208,217,226,235,244,253,262,271,280]
[null,null,null,null,null,null,109,118,127,136,145,19,28,37,46]
[null,null,null,null,null,null,550,451,460,352,361,370,253,262,271,280,154,163,172,181,190,55,64,73,82,91]
[null,null,null,null,null,null,901,802,703,604,505,406,307,208,109]

{"sheet":"Итог","index":2,"n_rows":19,"n_cols":10,"rows_kept":19,"cut":false,"hidden":false,"merged":[[13,0,17,9],[6,0,12,9],[2,8,2,9],[3,8,3,9],[2,1,2,6],[3,1,3,6],[0,0,0,9],[18,0,19,9],[5,0,5,8]]}
["  Конструктивный рисунок человека из геометрических фигур"]
[]
["ФИО",{"$f":"PROPER(Рисунок!E2)","v":""},null,null,null,null,null,"Класс",{"$f":"Рисунок!N2","v":0}]
["Возраст",{"$f":"CONCATENATE(Рисунок!E3, \" лет\")","v":" лет"},null,null,null,null,null,"Дата",{"$f":"TODAY()","v":"2018-02-03"}]
[]
["Конструктивный рисунок человека из геометрических фигур",null,null,null,null,null,null,null,null,{"$f":"ОР!E1","v":{"$error":"#VALUE!"}}]
[{"$f":"ОР!AA16","v":{"$error":"#VALUE!"}}]
[]
[]
[]
[]
[]
[]
[{"$f":"ОР!AA19","v":{"$error":"#VALUE!"}}]
[]
[]
[]
[]
[{"$f":"ОР!AA22","v":{"$error":"#VALUE!"}}]